[Event "Titled Tuesday Blitz January 17 Late 2023"]
[White "Garcia Almaguer, Juan Manuel"]
[Black "Wang, Alexander J"]
[WhiteFideId "5110491"]
[BlackFideId "30955270"]
[WhiteElo "2090"]
[BlackElo "1815"]
[Result "0-1"]
[Round "11"]
[TimeControl "180+2"]
[Date "2023.01.17"]
[WhiteClock "0:00:14"]
[BlackClock "0:00:22"]

1. e4 {[%clk 0:02:56]}  c5 {[%clk 0:02:59]} 2. Nf3 {[%clk 0:02:53]}  d6 {[%clk 0:02:59]} 3. d4 {[%clk 0:02:53]}  cxd4 {[%clk 0:02:59]} 4. Nxd4 {[%clk 0:02:54]}  Nf6 {[%clk 0:02:59]} 5. Nc3 {[%clk 0:02:54]}  g6 {[%clk 0:03:00]} 6. Be2 {[%clk 0:02:52]}  Bg7 {[%clk 0:03:00]} 7. h4 {[%clk 0:02:53]}  h5 {[%clk 0:02:58]} 8. Be3 {[%clk 0:02:45]}  O-O {[%clk 0:02:52]} 9. Qd2 {[%clk 0:02:42]}  Nc6 {[%clk 0:02:49]} 10. f3 {[%clk 0:02:32]}  d5 {[%clk 0:02:25]} 11. exd5 {[%clk 0:02:18]}  Nxd5 {[%clk 0:02:18]} 12. Nxc6 {[%clk 0:02:18]}  bxc6 {[%clk 0:02:19]} 13. Bd4 {[%clk 0:02:15]}  e5 {[%clk 0:02:12]} 14. Bc5 {[%clk 0:02:15]}  Re8 {[%clk 0:02:11]} 15. O-O-O {[%clk 0:02:10]}  Be6 {[%clk 0:02:03]} 16. Ne4 {[%clk 0:02:04]}  Nf4 {[%clk 0:01:36]} 17. Qe3 {[%clk 0:01:33]}  Qa5 {[%clk 0:01:34]} 18. a3 {[%clk 0:01:17]}  Rab8 {[%clk 0:01:21]} 19. Bf1 {[%clk 0:00:51]}  f5 {[%clk 0:01:03]} 20. Nc3 {[%clk 0:00:51]}  Kh7 {[%clk 0:00:54]} 21. g4 {[%clk 0:00:47]}  fxg4 {[%clk 0:00:52]} 22. Ne4 {[%clk 0:00:32]}  gxf3 {[%clk 0:00:42]} 23. Rd6 {[%clk 0:00:31]}  Bf5 {[%clk 0:00:32]} 24. Ng5+ {[%clk 0:00:21]}  Kg8 {[%clk 0:00:29]} 25. Nxf3 {[%clk 0:00:19]}  Nd5 {[%clk 0:00:28]} 26. Qf2 {[%clk 0:00:14]}  e4 {[%clk 0:00:24]} 27. Nd4 {[%clk 0:00:14]}  Qxc5 {[%clk 0:00:22]} 0-1


[Site "https://www.chess.com"]

[Event "Titled Tuesday Blitz January 17 Late 2023"]
[White "O`Gorman, Tom"]
[Black "Castellanos Hernandez, Emilio Au"]
[WhiteFideId "2508249"]
[BlackFideId "5114179"]
[WhiteElo "2355"]
[BlackElo "1964"]
[Result "1-0"]
[Round "11"]
[TimeControl "180+2"]
[Date "2023.01.17"]
[WhiteClock "0:01:18"]
[BlackClock "0:00:02"]

1. e4 {[%clk 0:02:58]}  e6 {[%clk 0:03:00]} 2. d4 {[%clk 0:02:58]}  d5 {[%clk 0:03:00]} 3. Bd3 {[%clk 0:02:57]}  dxe4 {[%clk 0:02:57]} 4. Bxe4 {[%clk 0:02:58]}  Nf6 {[%clk 0:02:58]} 5. Bf3 {[%clk 0:02:56]}  c5 {[%clk 0:02:57]} 6. Ne2 {[%clk 0:02:54]}  Nc6 {[%clk 0:02:50]} 7. Be3 {[%clk 0:02:52]}  Be7 {[%clk 0:02:45]} 8. Nbc3 {[%clk 0:02:50]}  cxd4 {[%clk 0:02:43]} 9. Nxd4 {[%clk 0:02:49]}  Ne5 {[%clk 0:02:43]} 10. Qe2 {[%clk 0:02:47]}  O-O {[%clk 0:02:42]} 11. O-O-O {[%clk 0:02:46]}  Nxf3 {[%clk 0:02:26]} 12. gxf3 {[%clk 0:02:43]}  Bd7 {[%clk 0:02:21]} 13. Rhg1 {[%clk 0:02:42]}  a6 {[%clk 0:02:19]} 14. Bh6 {[%clk 0:02:37]}  g6 {[%clk 0:01:59]} 15. Bxf8 {[%clk 0:02:37]}  Bxf8 {[%clk 0:02:00]} 16. Ne4 {[%clk 0:02:35]}  Nd5 {[%clk 0:01:57]} 17. Kb1 {[%clk 0:02:33]}  Qa5 {[%clk 0:01:51]} 18. Nb3 {[%clk 0:02:30]}  Qc7 {[%clk 0:01:07]} 19. c4 {[%clk 0:02:08]}  Nf4 {[%clk 0:01:01]} 20. Qe3 {[%clk 0:02:03]}  Bc6 {[%clk 0:00:55]} 21. Nd4 {[%clk 0:02:00]}  Bg7 {[%clk 0:00:53]} 22. Nxc6 {[%clk 0:01:58]}  bxc6 {[%clk 0:00:54]} 23. Nd6 {[%clk 0:01:57]}  Rb8 {[%clk 0:00:48]} 24. Qxf4 {[%clk 0:01:53]}  Bxb2 {[%clk 0:00:42]} 25. Kc2 {[%clk 0:01:52]}  Qa5 {[%clk 0:00:30]} 26. Nb5 {[%clk 0:01:43]}  e5 {[%clk 0:00:20]} 27. Qd2 {[%clk 0:01:31]}  Qa4+ {[%clk 0:00:19]} 28. Kxb2 {[%clk 0:01:31]}  cxb5 {[%clk 0:00:19]} 29. Ka1 {[%clk 0:01:30]}  bxc4 {[%clk 0:00:19]} 30. Rb1 {[%clk 0:01:28]}  Rc8 {[%clk 0:00:18]} 31. Qc3 {[%clk 0:01:27]}  Qa5 {[%clk 0:00:17]} 32. Qxa5 {[%clk 0:01:26]}  Kg7 {[%clk 0:00:16]} 33. Qxe5+ {[%clk 0:01:25]}  Kg8 {[%clk 0:00:09]} 34. Rb8 {[%clk 0:01:23]}  Rxb8 {[%clk 0:00:08]} 35. Qxb8+ {[%clk 0:01:21]}  Kg7 {[%clk 0:00:08]} 36. Qe5+ {[%clk 0:01:21]}  Kg8 {[%clk 0:00:05]} 37. Rd1 {[%clk 0:01:19]}  f6 {[%clk 0:00:05]} 38. Qe7 {[%clk 0:01:18]}  c3 {[%clk 0:00:02]} 39. Rd8# {[%clk 0:01:18]} 1-0


[Site "https://www.chess.com"]

[Event "Titled Tuesday Blitz January 17 Late 2023"]
[White "Mione, Dario"]
[Black "Defend, Balint"]
[WhiteFideId "806625"]
[BlackFideId "17004853"]
[WhiteElo "2228"]
[BlackElo "1673"]
[Result "1/2-1/2"]
[Round "11"]
[TimeControl "180+2"]
[Date "2023.01.17"]
[WhiteClock "0:00:17"]
[BlackClock "0:00:55"]

1. e4 {[%clk 0:03:00]}  c5 {[%clk 0:03:00]} 2. d4 {[%clk 0:03:00]}  cxd4 {[%clk 0:03:00]} 3. c3 {[%clk 0:03:00]}  dxc3 {[%clk 0:03:01]} 4. Nxc3 {[%clk 0:03:01]}  a6 {[%clk 0:03:02]} 5. Nf3 {[%clk 0:03:00]}  e6 {[%clk 0:03:01]} 6. Bc4 {[%clk 0:03:00]}  Nc6 {[%clk 0:02:57]} 7. O-O {[%clk 0:02:59]}  Nge7 {[%clk 0:02:56]} 8. Bg5 {[%clk 0:02:59]}  h6 {[%clk 0:02:55]} 9. Bh4 {[%clk 0:02:58]}  Qa5 {[%clk 0:02:52]} 10. Qe2 {[%clk 0:02:53]}  Ng6 {[%clk 0:02:51]} 11. Bg3 {[%clk 0:02:52]}  d6 {[%clk 0:02:50]} 12. Rfd1 {[%clk 0:02:45]}  Nge5 {[%clk 0:02:48]} 13. Bb3 {[%clk 0:02:40]}  Be7 {[%clk 0:02:47]} 14. Rac1 {[%clk 0:02:16]}  O-O {[%clk 0:02:43]} 15. Nd4 {[%clk 0:02:11]}  Nxd4 {[%clk 0:02:41]} 16. Rxd4 {[%clk 0:02:11]}  b5 {[%clk 0:02:39]} 17. f4 {[%clk 0:01:57]}  Nc6 {[%clk 0:02:35]} 18. Rdd1 {[%clk 0:01:56]}  Bb7 {[%clk 0:02:34]} 19. Nd5 {[%clk 0:01:48]}  exd5 {[%clk 0:02:31]} 20. exd5 {[%clk 0:01:48]}  Nd4 {[%clk 0:02:17]} 21. Qxe7 {[%clk 0:01:12]}  Nxb3 {[%clk 0:02:16]} 22. axb3 {[%clk 0:01:12]}  Rab8 {[%clk 0:01:59]} 23. Qxd6 {[%clk 0:01:09]}  Rfd8 {[%clk 0:01:59]} 24. Qe5 {[%clk 0:00:51]}  Rbc8 {[%clk 0:01:40]} 25. Rxc8 {[%clk 0:00:50]}  Bxc8 {[%clk 0:01:41]} 26. f5 {[%clk 0:00:47]}  Qb6+ {[%clk 0:01:39]} 27. Bf2 {[%clk 0:00:46]}  Qd6 {[%clk 0:01:37]} 28. Qxd6 {[%clk 0:00:44]}  Rxd6 {[%clk 0:01:37]} 29. Bc5 {[%clk 0:00:43]}  Rd7 {[%clk 0:01:27]} 30. g4 {[%clk 0:00:42]}  f6 {[%clk 0:01:26]} 31. Kf2 {[%clk 0:00:41]}  Kf7 {[%clk 0:01:25]} 32. Ke3 {[%clk 0:00:39]}  h5 {[%clk 0:01:25]} 33. h3 {[%clk 0:00:39]}  Rd8 {[%clk 0:01:25]} 34. Rd2 {[%clk 0:00:30]}  Rh8 {[%clk 0:01:21]} 35. d6 {[%clk 0:00:28]}  Bd7 {[%clk 0:01:20]} 36. Re2 {[%clk 0:00:22]}  hxg4 {[%clk 0:01:20]} 37. hxg4 {[%clk 0:00:22]}  Re8+ {[%clk 0:01:16]} 38. Kf2 {[%clk 0:00:21]}  Rxe2+ {[%clk 0:01:14]} 39. Kxe2 {[%clk 0:00:22]}  a5 {[%clk 0:01:13]} 40. Bb6 {[%clk 0:00:20]}  a4 {[%clk 0:01:13]} 41. bxa4 {[%clk 0:00:21]}  bxa4 {[%clk 0:01:14]} 42. Kd2 {[%clk 0:00:21]}  g6 {[%clk 0:01:12]} 43. fxg6+ {[%clk 0:00:19]}  Kxg6 {[%clk 0:01:13]} 44. Ke3 {[%clk 0:00:18]}  Bxg4 {[%clk 0:01:14]} 45. Kf4 {[%clk 0:00:18]}  Bd7 {[%clk 0:01:14]} 46. Bd4 {[%clk 0:00:18]}  Kf7 {[%clk 0:01:14]} 47. Bc5 {[%clk 0:00:18]}  Ke6 {[%clk 0:01:14]} 48. Ba3 {[%clk 0:00:18]}  Kd5 {[%clk 0:01:14]} 49. Ke3 {[%clk 0:00:18]}  Kc4 {[%clk 0:01:14]} 50. Kf4 {[%clk 0:00:18]}  f5 {[%clk 0:01:02]} 51. Ke5 {[%clk 0:00:17]}  Bc8 {[%clk 0:00:59]} 52. Kf4 {[%clk 0:00:17]}  Be6 {[%clk 0:00:58]} 53. Ke5 {[%clk 0:00:16]}  Bd7 {[%clk 0:00:59]} 54. Kf4 {[%clk 0:00:17]}  Kd4 {[%clk 0:00:59]} 55. Bb4 {[%clk 0:00:16]}  Kd5 {[%clk 0:00:59]} 56. Ba3 {[%clk 0:00:16]}  Ke6 {[%clk 0:01:00]} 57. Bb4 {[%clk 0:00:16]}  Bc6 {[%clk 0:01:00]} 58. Ba3 {[%clk 0:00:16]}  Bd7 {[%clk 0:01:01]} 59. Bb4 {[%clk 0:00:17]}  Kd5 {[%clk 0:01:01]} 60. Ba3 {[%clk 0:00:17]}  Kc6 {[%clk 0:01:01]} 61. Ke5 {[%clk 0:00:17]}  Kb5 {[%clk 0:01:01]} 62. Kf4 {[%clk 0:00:17]}  Kc4 {[%clk 0:01:01]} 63. Ke5 {[%clk 0:00:17]}  Kd3 {[%clk 0:01:01]} 64. Kf4 {[%clk 0:00:17]}  Ke2 {[%clk 0:01:01]} 65. Bb4 {[%clk 0:00:17]}  Kd1 {[%clk 0:00:59]} 66. Ba3 {[%clk 0:00:17]}  Kc2 {[%clk 0:01:00]} 67. Ke5 {[%clk 0:00:17]}  Kb1 {[%clk 0:00:57]} 68. Kf4 {[%clk 0:00:18]}  Kc2 {[%clk 0:00:57]} 69. Ke5 {[%clk 0:00:18]}  Kd2 {[%clk 0:00:56]} 70. Kf4 {[%clk 0:00:18]}  Kd3 {[%clk 0:00:56]} 71. Bb4 {[%clk 0:00:17]}  Kd4 {[%clk 0:00:56]} 72. Ba3 {[%clk 0:00:17]}  Kc4 {[%clk 0:00:55]} 1/2-1/2


[Site "https://www.chess.com"]

[Event "Titled Tuesday Blitz January 17 Late 2023"]
[White "Seletsky, Grigory"]
[Black "Novikov, Evgenij"]
[WhiteFideId "14112191"]
[BlackFideId "4125380"]
[WhiteElo "2259"]
[BlackElo "2276"]
[Result "1-0"]
[Round "11"]
[TimeControl "180+2"]
[Date "2023.01.17"]
[WhiteClock "0:00:18"]
[BlackClock "0:00:03"]

1. e4 {[%clk 0:02:52]}  c5 {[%clk 0:03:00]} 2. Nc3 {[%clk 0:02:51]}  Nc6 {[%clk 0:02:59]} 3. d3 {[%clk 0:02:52]}  g6 {[%clk 0:02:58]} 4. Be3 {[%clk 0:02:52]}  d6 {[%clk 0:02:57]} 5. d4 {[%clk 0:02:52]}  cxd4 {[%clk 0:02:56]} 6. Bxd4 {[%clk 0:02:53]}  Nxd4 {[%clk 0:02:52]} 7. Qxd4 {[%clk 0:02:54]}  Nf6 {[%clk 0:02:51]} 8. e5 {[%clk 0:02:54]}  dxe5 {[%clk 0:02:42]} 9. Bb5+ {[%clk 0:02:52]}  Bd7 {[%clk 0:02:41]} 10. Qxe5 {[%clk 0:02:51]}  Bg7 {[%clk 0:02:37]} 11. O-O-O {[%clk 0:02:49]}  O-O {[%clk 0:02:00]} 12. Bxd7 {[%clk 0:02:22]}  Nxd7 {[%clk 0:01:58]} 13. Qb5 {[%clk 0:02:21]}  Qb6 {[%clk 0:01:31]} 14. Rxd7 {[%clk 0:02:05]}  Qxf2 {[%clk 0:01:29]} 15. Nge2 {[%clk 0:01:59]}  Qxg2 {[%clk 0:01:20]} 16. Qxb7 {[%clk 0:01:51]}  Qg5+ {[%clk 0:01:19]} 17. Kb1 {[%clk 0:01:28]}  Rab8 {[%clk 0:01:20]} 18. Qd5 {[%clk 0:01:25]}  Qf6 {[%clk 0:01:15]} 19. Ka1 {[%clk 0:01:18]}  Rfc8 {[%clk 0:01:10]} 20. Rd1 {[%clk 0:01:14]}  h6 {[%clk 0:00:48]} 21. Nd4 {[%clk 0:01:03]}  Kh7 {[%clk 0:00:45]} 22. Qe4 {[%clk 0:00:43]}  Qb6 {[%clk 0:00:38]} 23. Nb3 {[%clk 0:00:42]}  a5 {[%clk 0:00:30]} 24. Qxe7 {[%clk 0:00:41]}  Rf8 {[%clk 0:00:09]} 25. a4 {[%clk 0:00:39]}  Qf2 {[%clk 0:00:08]} 26. Qe2 {[%clk 0:00:34]}  Qf6 {[%clk 0:00:08]} 27. R1d6 {[%clk 0:00:33]}  Qf5 {[%clk 0:00:07]} 28. Qd3 {[%clk 0:00:30]}  Qg5 {[%clk 0:00:06]} 29. Ka2 {[%clk 0:00:29]}  Rb4 {[%clk 0:00:06]} 30. Rd5 {[%clk 0:00:27]}  Qf6 {[%clk 0:00:05]} 31. Rxa5 {[%clk 0:00:26]}  Rfb8 {[%clk 0:00:05]} 32. Raa7 {[%clk 0:00:24]}  Qe6 {[%clk 0:00:05]} 33. Rxf7 {[%clk 0:00:23]}  Rxb3 {[%clk 0:00:03]} 34. Rxg7+ {[%clk 0:00:22]}  Kh8 {[%clk 0:00:03]} 35. Rh7+ {[%clk 0:00:20]}  Kg8 {[%clk 0:00:04]} 36. Rag7+ {[%clk 0:00:20]}  Kf8 {[%clk 0:00:04]} 37. Qf3+ {[%clk 0:00:18]}  Qf5 {[%clk 0:00:02]} 38. Qxf5+ {[%clk 0:00:18]}  gxf5 {[%clk 0:00:03]} 39. cxb3 {[%clk 0:00:18]} 1-0


[Site "https://www.chess.com"]

[Event "Titled Tuesday Blitz January 17 Late 2023"]
[White "MitzyCaballero"]
[Black "Figorito, Nick"]
[BlackFideId "30923689"]
[WhiteElo "2313"]
[BlackElo "2036"]
[Result "1-0"]
[Round "11"]
[TimeControl "180+2"]
[Date "2023.01.17"]
[WhiteClock "0:01:09"]
[BlackClock "0:01:29"]

1. d4 {[%clk 0:03:00]}  Nf6 {[%clk 0:03:00]} 2. Nf3 {[%clk 0:03:00]}  g6 {[%clk 0:03:00]} 3. c4 {[%clk 0:03:00]}  Bg7 {[%clk 0:03:01]} 4. g3 {[%clk 0:03:00]}  O-O {[%clk 0:03:01]} 5. Bg2 {[%clk 0:03:01]}  c6 {[%clk 0:03:02]} 6. O-O {[%clk 0:03:00]}  d5 {[%clk 0:03:03]} 7. cxd5 {[%clk 0:02:58]}  cxd5 {[%clk 0:03:04]} 8. Ne5 {[%clk 0:02:56]}  Nc6 {[%clk 0:03:01]} 9. Nxc6 {[%clk 0:02:56]}  bxc6 {[%clk 0:03:02]} 10. Nc3 {[%clk 0:02:56]}  Nd7 {[%clk 0:03:00]} 11. Na4 {[%clk 0:02:55]}  e5 {[%clk 0:02:57]} 12. Be3 {[%clk 0:02:45]}  Re8 {[%clk 0:02:41]} 13. Rc1 {[%clk 0:02:44]}  exd4 {[%clk 0:02:40]} 14. Bxd4 {[%clk 0:02:42]}  Bxd4 {[%clk 0:02:40]} 15. Qxd4 {[%clk 0:02:43]}  Rxe2 {[%clk 0:02:40]} 16. Rxc6 {[%clk 0:02:40]}  Nb6 {[%clk 0:02:37]} 17. Nxb6 {[%clk 0:01:29]}  axb6 {[%clk 0:02:35]} 18. a3 {[%clk 0:01:29]}  Be6 {[%clk 0:02:32]} 19. Rfc1 {[%clk 0:01:25]}  Qg5 {[%clk 0:02:17]} 20. Bf3 {[%clk 0:01:20]}  Qd2 {[%clk 0:02:05]} 21. Qxd2 {[%clk 0:01:15]}  Rxd2 {[%clk 0:02:06]} 22. Rxb6 {[%clk 0:01:15]}  Ra4 {[%clk 0:01:51]} 23. Rd1 {[%clk 0:01:10]}  Rxd1+ {[%clk 0:01:30]} 24. Bxd1 {[%clk 0:01:10]}  h5 {[%clk 0:01:29]} 25. Bxa4 {[%clk 0:01:09]} 1-0


[Site "https://www.chess.com"]

[Event "Titled Tuesday Blitz January 17 Late 2023"]
[White "Remolar Gallen, Jose"]
[Black "Gerbelli Neto, Eduardo"]
[WhiteFideId "2215187"]
[BlackFideId "2103281"]
[WhiteElo "2285"]
[BlackElo "2114"]
[Result "1-0"]
[Round "11"]
[TimeControl "180+2"]
[Date "2023.01.17"]
[WhiteClock "0:00:04"]
[BlackClock "0:00:07"]

1. e4 {[%clk 0:03:00]}  e5 {[%clk 0:02:59]} 2. f4 {[%clk 0:03:01]}  Nc6 {[%clk 0:02:59]} 3. Nf3 {[%clk 0:03:01]}  f5 {[%clk 0:02:59]} 4. d4 {[%clk 0:02:56]}  exd4 {[%clk 0:02:53]} 5. e5 {[%clk 0:02:56]}  d5 {[%clk 0:02:44]} 6. Bd3 {[%clk 0:02:51]}  Be7 {[%clk 0:02:23]} 7. Nbd2 {[%clk 0:02:41]}  Nh6 {[%clk 0:02:22]} 8. Nb3 {[%clk 0:02:39]}  O-O {[%clk 0:02:18]} 9. Bd2 {[%clk 0:02:04]}  Ng4 {[%clk 0:02:06]} 10. Qe2 {[%clk 0:02:02]}  a5 {[%clk 0:01:54]} 11. a4 {[%clk 0:01:36]}  Nb4 {[%clk 0:01:51]} 12. O-O {[%clk 0:01:22]}  c5 {[%clk 0:01:48]} 13. Bb5 {[%clk 0:01:12]}  Nxc2 {[%clk 0:01:40]} 14. Rac1 {[%clk 0:00:55]}  Nce3 {[%clk 0:01:40]} 15. Rfe1 {[%clk 0:00:55]}  b6 {[%clk 0:01:28]} 16. h3 {[%clk 0:00:52]}  Nh6 {[%clk 0:01:24]} 17. Bxe3 {[%clk 0:00:45]}  dxe3 {[%clk 0:01:25]} 18. Qxe3 {[%clk 0:00:46]}  d4 {[%clk 0:01:17]} 19. Qf2 {[%clk 0:00:45]}  Bb7 {[%clk 0:01:18]} 20. Nbd2 {[%clk 0:00:40]}  Nf7 {[%clk 0:01:08]} 21. Qg3 {[%clk 0:00:28]}  Kh8 {[%clk 0:01:08]} 22. e6 {[%clk 0:00:21]}  Nd6 {[%clk 0:01:01]} 23. Ne5 {[%clk 0:00:20]}  Bh4 {[%clk 0:00:49]} 24. Qh2 {[%clk 0:00:05]}  Bxe1 {[%clk 0:00:48]} 25. Rxe1 {[%clk 0:00:06]}  Qe7 {[%clk 0:00:38]} 26. Bd7 {[%clk 0:00:05]}  Bd5 {[%clk 0:00:23]} 27. Ndf3 {[%clk 0:00:05]}  Ne4 {[%clk 0:00:22]} 28. g4 {[%clk 0:00:03]}  fxg4 {[%clk 0:00:12]} 29. hxg4 {[%clk 0:00:04]}  Kg8 {[%clk 0:00:12]} 30. Rxe4 {[%clk 0:00:03]}  Bxe4 {[%clk 0:00:11]} 31. Ng5 {[%clk 0:00:03]}  Qf6 {[%clk 0:00:10]} 32. Nxe4 {[%clk 0:00:02]}  Qxf4 {[%clk 0:00:10]} 33. Qxf4 {[%clk 0:00:02]}  Rxf4 {[%clk 0:00:11]} 34. Nd6 {[%clk 0:00:02]}  Rff8 {[%clk 0:00:08]} 35. e7 {[%clk 0:00:02]}  Rfd8 {[%clk 0:00:07]} 36. Be6+ {[%clk 0:00:03]}  Kh8 {[%clk 0:00:06]} 37. Nef7+ {[%clk 0:00:03]}  Kg8 {[%clk 0:00:07]} 38. Nh6+ {[%clk 0:00:03]}  Kh8 {[%clk 0:00:07]} 39. Ndf7# {[%clk 0:00:04]} 1-0


[Site "https://www.chess.com"]

[Event "Titled Tuesday Blitz January 17 Late 2023"]
[White "Ferriz Barrios, Andres"]
[Black "Desideri, Ricardo Maruchi"]
[WhiteFideId "5104467"]
[BlackFideId "2110440"]
[WhiteElo "2102"]
[BlackElo "1959"]
[Result "0-1"]
[Round "11"]
[TimeControl "180+2"]
[Date "2023.01.17"]
[WhiteClock "0:01:29"]
[BlackClock "0:00:31"]

1. d4 {[%clk 0:02:57]}  Nf6 {[%clk 0:02:59]} 2. Nf3 {[%clk 0:02:54]}  d6 {[%clk 0:02:57]} 3. e3 {[%clk 0:02:55]}  g6 {[%clk 0:02:56]} 4. b3 {[%clk 0:02:55]}  Bg7 {[%clk 0:02:57]} 5. Bb2 {[%clk 0:02:55]}  O-O {[%clk 0:02:55]} 6. Nbd2 {[%clk 0:02:54]}  b6 {[%clk 0:02:54]} 7. h4 {[%clk 0:02:52]}  Bb7 {[%clk 0:02:50]} 8. Bd3 {[%clk 0:02:53]}  Nbd7 {[%clk 0:02:46]} 9. c4 {[%clk 0:02:50]}  h5 {[%clk 0:02:38]} 10. Nf1 {[%clk 0:02:43]}  Ng4 {[%clk 0:02:33]} 11. Ng5 {[%clk 0:02:40]}  Bxg2 {[%clk 0:02:28]} 12. Rg1 {[%clk 0:02:39]}  Bb7 {[%clk 0:02:14]} 13. Rxg4 {[%clk 0:02:38]}  hxg4 {[%clk 0:02:13]} 14. Qxg4 {[%clk 0:02:38]}  Nf6 {[%clk 0:02:09]} 15. Qg1 {[%clk 0:02:36]}  Nh5 {[%clk 0:02:08]} 16. Nxf7 {[%clk 0:02:28]}  Rxf7 {[%clk 0:02:01]} 17. Bxg6 {[%clk 0:02:27]}  Nf6 {[%clk 0:01:49]} 18. d5 {[%clk 0:02:27]}  Qd7 {[%clk 0:01:35]} 19. h5 {[%clk 0:02:21]}  Qg4 {[%clk 0:01:33]} 20. Bxf7+ {[%clk 0:02:15]}  Kxf7 {[%clk 0:01:30]} 21. Qxg4 {[%clk 0:02:13]}  Nxg4 {[%clk 0:01:29]} 22. Bxg7 {[%clk 0:02:14]}  Kxg7 {[%clk 0:01:29]} 23. f3 {[%clk 0:02:14]}  Nf6 {[%clk 0:01:27]} 24. Ng3 {[%clk 0:02:13]}  Bc8 {[%clk 0:01:24]} 25. Kf2 {[%clk 0:02:13]}  Kh6 {[%clk 0:01:23]} 26. Rh1 {[%clk 0:02:13]}  Bd7 {[%clk 0:01:22]} 27. e4 {[%clk 0:02:13]}  Rg8 {[%clk 0:01:20]} 28. Rh4 {[%clk 0:02:13]}  Rg5 {[%clk 0:01:19]} 29. f4 {[%clk 0:02:10]}  Rg4 {[%clk 0:01:16]} 30. Rxg4 {[%clk 0:01:58]}  Bxg4 {[%clk 0:01:16]} 31. e5 {[%clk 0:01:58]}  Nxh5 {[%clk 0:01:15]} 32. exd6 {[%clk 0:01:53]}  exd6 {[%clk 0:01:08]} 33. Ne4 {[%clk 0:01:50]}  Nxf4 {[%clk 0:01:02]} 34. Nf6 {[%clk 0:01:49]}  Kg5 {[%clk 0:00:56]} 35. Ne8 {[%clk 0:01:47]}  Nd3+ {[%clk 0:00:56]} 36. Ke3 {[%clk 0:01:44]}  Nc1 {[%clk 0:00:56]} 37. Nxc7 {[%clk 0:01:44]}  Nxa2 {[%clk 0:00:56]} 38. Nb5 {[%clk 0:01:43]}  Nc1 {[%clk 0:00:50]} 39. b4 {[%clk 0:01:42]}  Na2 {[%clk 0:00:48]} 40. Nxa7 {[%clk 0:01:41]}  Nxb4 {[%clk 0:00:46]} 41. Kd4 {[%clk 0:01:41]}  Bd7 {[%clk 0:00:43]} 42. Kc3 {[%clk 0:01:40]}  Na6 {[%clk 0:00:38]} 43. Kd4 {[%clk 0:01:38]}  Kf5 {[%clk 0:00:37]} 44. Nc6 {[%clk 0:01:31]}  Bxc6 {[%clk 0:00:36]} 45. dxc6 {[%clk 0:01:32]}  Nc7 {[%clk 0:00:36]} 46. Kc3 {[%clk 0:01:28]}  Ke5 {[%clk 0:00:35]} 47. Kb4 {[%clk 0:01:29]}  Kd4 {[%clk 0:00:33]} 48. Kb3 {[%clk 0:01:29]}  Kc5 {[%clk 0:00:31]} 0-1


[Site "https://www.chess.com"]

[Event "Titled Tuesday Blitz January 17 Late 2023"]
[White "Stead, Kerry"]
[Black "Vifleemskaia, Svetlana"]
[WhiteFideId "3202577"]
[BlackFideId "4129490"]
[WhiteElo "1908"]
[BlackElo "1971"]
[Result "1/2-1/2"]
[Round "11"]
[TimeControl "180+2"]
[Date "2023.01.17"]
[WhiteClock "0:01:12"]
[BlackClock "0:00:48"]

1. d4 {[%clk 0:03:00]}  Nf6 {[%clk 0:02:58]} 2. f3 {[%clk 0:03:00]}  d5 {[%clk 0:02:57]} 3. e4 {[%clk 0:03:00]}  dxe4 {[%clk 0:02:57]} 4. Nc3 {[%clk 0:03:01]}  c5 {[%clk 0:02:57]} 5. Bb5+ {[%clk 0:02:59]}  Bd7 {[%clk 0:02:56]} 6. dxc5 {[%clk 0:02:59]}  Nc6 {[%clk 0:02:52]} 7. fxe4 {[%clk 0:02:56]}  e5 {[%clk 0:02:51]} 8. Be3 {[%clk 0:02:55]}  Qa5 {[%clk 0:02:49]} 9. a3 {[%clk 0:02:39]}  Nxe4 {[%clk 0:02:44]} 10. b4 {[%clk 0:02:39]}  Nxc3 {[%clk 0:02:44]} 11. bxa5 {[%clk 0:02:39]}  Nxd1 {[%clk 0:02:43]} 12. Rxd1 {[%clk 0:02:40]}  O-O-O {[%clk 0:02:42]} 13. Nf3 {[%clk 0:02:39]}  f6 {[%clk 0:02:41]} 14. a6 {[%clk 0:02:33]}  bxa6 {[%clk 0:02:38]} 15. Bxa6+ {[%clk 0:02:32]}  Kc7 {[%clk 0:02:38]} 16. O-O {[%clk 0:02:31]}  Be7 {[%clk 0:02:38]} 17. Nd2 {[%clk 0:02:28]}  Bg4 {[%clk 0:02:30]} 18. Rb1 {[%clk 0:02:25]}  Rb8 {[%clk 0:02:29]} 19. Nc4 {[%clk 0:02:23]}  Rxb1 {[%clk 0:02:20]} 20. Rxb1 {[%clk 0:02:24]}  Rb8 {[%clk 0:02:19]} 21. Rxb8 {[%clk 0:02:22]}  Nxb8 {[%clk 0:02:18]} 22. Bb5 {[%clk 0:02:22]}  Be2 {[%clk 0:02:08]} 23. Nd6 {[%clk 0:02:15]}  Bxb5 {[%clk 0:02:03]} 24. Nxb5+ {[%clk 0:02:14]}  Kb7 {[%clk 0:02:03]} 25. c4 {[%clk 0:02:08]}  a6 {[%clk 0:01:57]} 26. Nd6+ {[%clk 0:02:06]}  Kc6 {[%clk 0:01:52]} 27. Nf5 {[%clk 0:02:02]}  Bf8 {[%clk 0:01:50]} 28. Kf2 {[%clk 0:02:01]}  Nd7 {[%clk 0:01:49]} 29. g4 {[%clk 0:01:50]}  Nxc5 {[%clk 0:01:48]} 30. Kf3 {[%clk 0:01:48]}  g6 {[%clk 0:01:47]} 31. Ng3 {[%clk 0:01:47]}  Ne6 {[%clk 0:01:43]} 32. a4 {[%clk 0:01:45]}  Bc5 {[%clk 0:01:29]} 33. h4 {[%clk 0:01:44]}  Bxe3 {[%clk 0:01:26]} 34. Kxe3 {[%clk 0:01:45]}  Nc5 {[%clk 0:01:26]} 35. a5 {[%clk 0:01:44]}  Nb3 {[%clk 0:01:23]} 36. Ne4 {[%clk 0:01:41]}  f5 {[%clk 0:01:22]} 37. gxf5 {[%clk 0:01:39]}  gxf5 {[%clk 0:01:23]} 38. Ng5 {[%clk 0:01:38]}  Nxa5 {[%clk 0:01:22]} 39. Nxh7 {[%clk 0:01:37]}  Nxc4+ {[%clk 0:01:22]} 40. Kd3 {[%clk 0:01:37]}  Nd6 {[%clk 0:01:20]} 41. Nf6 {[%clk 0:01:35]}  Nf7 {[%clk 0:01:16]} 42. h5 {[%clk 0:01:34]}  a5 {[%clk 0:01:14]} 43. Kc4 {[%clk 0:01:30]}  e4 {[%clk 0:01:11]} 44. Kd4 {[%clk 0:01:27]}  a4 {[%clk 0:01:08]} 45. Nd5 {[%clk 0:01:24]}  a3 {[%clk 0:01:06]} 46. Nc3 {[%clk 0:01:22]}  Kd6 {[%clk 0:01:05]} 47. Nb5+ {[%clk 0:01:19]}  Ke6 {[%clk 0:01:05]} 48. Nxa3 {[%clk 0:01:19]}  Kf6 {[%clk 0:01:05]} 49. Nc4 {[%clk 0:01:17]}  Kg5 {[%clk 0:01:06]} 50. Ne3 {[%clk 0:01:17]}  Nh6 {[%clk 0:01:00]} 51. Ke5 {[%clk 0:01:13]}  f4 {[%clk 0:00:49]} 52. Kxe4 {[%clk 0:01:12]}  fxe3 {[%clk 0:00:47]} 53. Kxe3 {[%clk 0:01:12]}  Kxh5 {[%clk 0:00:48]} 1/2-1/2


[Site "https://www.chess.com"]